bitfinex/quotes_ETHUSD_20250210
["timestamp","ask_amount","ask_price","bid_price","bid_amount"]
[1739159029319,0.783,2644.2,2644.0,3.78205]
[1739159029519,0.783,2644.2,2643.6,3.78261]
[1739159029920,4.56489,2644.2,2643.3,3.78311]
[1739159030242,3.78269,2643.7,2643.1,3.78337]
[1739159030496,0.783,2643.6,2643.1,3.78337]
[1739159031355,0.783,2643.6,2642.9,3.78371]
[1739159031356,4.56576,2643.6,2642.9,3.78371]
[1739159031561,3.78289,2643.5,2642.9,3.78361]
[1739159031935,0.783,2643.6,2642.9,3.78361]
[1739159032331,4.56581,2643.6,2642.9,7.56724]
[1739159032654,0.783,2643.6,2643.0,3.78343]
[1739159033014,0.783,2643.6,2643.2,3.78329]
[1739159033219,0.783,2643.6,2643.3,3.78305]
[1739159033431,0.77126118,2643.7,2643.2,3.78329]
[1739159033630,0.7647,2644.0,2643.4,3.78298]
[1739159033850,0.7647,2644.0,2643.7,3.78248]
[1739159034159,0.7647,2644.0,2643.8,3.78232]
[1739159034398,0.7647,2644.3,2643.8,3.78232]
[1739159034750,4.54642,2644.3,2643.6,3.7826]
[1739159034978,4.54642,2644.3,2643.5,3.78278]
[1739159035182,0.7647,2644.1,2643.0,3.78352]
[1739159035383,3.78244,2643.8,2642.7,3.784]
[1739159035599,0.7647,2644.1,2643.6,3.7827]
[1739159035751,4.54679,2644.1,2643.4,3.78291]
[1739159036103,3.78229,2643.9,2643.4,3.78291]
[1739159036451,3.78229,2643.9,2643.2,3.7832]
[1739159036652,3.78229,2643.9,2643.2,3.78318]
[1739159037192,3.78229,2643.9,2643.3,3.78303]
[1739159037392,0.7647,2643.5,2642.8,3.78384]
[1739159037609,0.7647,2643.5,2642.6,3.78406]
[1739159037610,3.78325,2643.3,2642.6,3.78406]
[1739159037754,7.56615,2643.4,2642.8,3.78384]
[1739159038002,3.78315,2643.3,2642.8,3.78384]
[1739159038164,3.78315,2643.3,2642.7,3.78399]
[1739159038656,3.78345,2643.1,2642.4,3.78437]
[1739159038984,0.7647,2643.5,2642.7,3.78395]
[1739159038985,7.56614,2643.4,2642.7,3.78395]
[1739159039181,0.7647,2643.5,2642.9,3.78368]
[1739159039368,0.7647,2643.5,2643.1,3.78343]
[1739159039565,0.7647,2643.5,2642.9,3.78368]
[1739159039781,0.7647,2643.5,2643.1,3.78334]
[1739159040299,0.7647,2643.5,2642.7,3.78397]
[1739159040479,3.78358,2643.0,2642.3,3.78444]
[1739159040668,0.7647,2643.2,2642.6,3.78401]
[1739159041075,0.7647,2643.2,2642.2,2.95661964]
[1739159041358,4.54806,2643.2,2642.6,3.78403]
[1739159041659,1.53724323,2643.2,2642.6,3.78402]
[1739159041882,1.53724323,2643.2,2642.8,3.78384]
[1739159042099,0.7647,2643.2,2642.8,3.78384]
[1739159042267,3.78395,2642.8,2642.1,3.78473]
[1739159042450,3.78448,2642.4,2641.8,3.78527]
[1739159042650,3.78448,2642.4,2641.8,3.78519]
[1739159043022,0.7647,2642.5,2641.9,3.78511]
[1739159043301,0.7647,2642.5,2642.2,3.78466]
[1739159043603,0.7647,2642.5,2642.0,3.78491]
[1739159043968,3.78443,2642.4,2641.8,3.78525]
[1739159044165,3.78474,2642.2,2641.6,3.78552]
[1739159044389,3.78494,2642.1,2641.3,2.14601964]
[1739159044708,3.78494,2642.1,2641.5,3.7857]
[1739159044999,4.54904,2642.5,2641.3,2.14601964]
[1739159045295,0.7647,2642.5,2642.0,3.785]
[1739159045493,0.7647,2642.5,2642.3,3.78445]
[1739159045704,0.7647,2642.8,2642.3,3.78445]
[1739159046192,1.51990576,2642.8,2642.3,3.78445]
[1739159047584,3.78409,2642.7,2642.0,3.78497]
[1739159047796,7.56821,2642.7,2642.0,3.78497]
[1739159048098,3.78409,2642.7,2641.9,3.7851]
[1739159048295,3.78433,2642.5,2641.9,3.78505]
[1739159048598,3.78433,2642.5,2641.5,6.45449947]
[1739159048599,0.7823,2642.4,2641.7,3.78542]
[1739159048798,0.7823,2642.4,2641.8,3.78526]
[1739159048972,4.56674,2642.4,2641.8,3.78526]
[1739159049172,4.56674,2642.4,2641.7,3.78542]
[1739159049399,4.56674,2642.4,2641.7,7.57075]
[1739159049601,4.56674,2642.4,2641.5,3.78561]
[1739159049602,3.78475,2642.2,2641.5,3.78561]
[1739159050198,4.56573,2643.1,2642.3,3.78458]
[1739159050493,0.7823,2643.1,2642.0,3.78501]
[1739159050671,0.7823,2643.1,2642.8,3.78383]
[1739159051197,0.7823,2643.1,2642.6,3.7841]
[1739159051198,0.7823,2643.1,2642.7,3.78399]
[1739159051495,0.7823,2643.1,2642.4,3.78436]
[1739159051496,3.78366,2643.0,2642.4,3.78436]
[1739159051697,3.78366,2643.0,2642.4,3.78432]
[1739159051902,3.78389,2642.8,2642.3,3.78454]
[1739159052055,0.7823,2642.9,2642.3,3.78454]
[1739159052261,3.78389,2642.8,2642.1,3.78476]
[1739159052460,3.78389,2642.8,2642.1,7.56952]
[1739159052690,3.78389,2642.8,2642.2,3.78472]
[1739159052892,3.78394,2642.8,2642.1,3.78476]
[1739159053100,4.56611,2642.9,2642.3,3.78455]
[1739159053305,0.7823,2642.9,2642.3,3.78455]
[1739159053504,0.7823,2642.9,2642.6,3.78406]
[1739159054220,3.78386,2642.8,2641.9,3.78505]
[1739159054413,3.78457,2642.4,2641.6,0.7659]
[1739159054571,3.78457,2642.4,2641.8,3.78528]
[1739159054775,0.8089,2642.3,2641.6,3.78544]
[1739159055005,3.78475,2642.2,2641.7,3.78542]
[1739159055214,0.8089,2642.3,2641.8,3.78529]
[1739159055998,0.8089,2642.3,2641.7,3.78542]
[1739159056315,4.59348,2642.3,2641.7,3.78542]
[1739159056487,0.8089,2642.3,2641.7,3.78542]
[1739159056891,0.8089,2642.3,2641.7,3.78534]
[1739159057287,0.8089,2642.3,2641.8,3.78519]
[1739159057490,0.8089,2642.3,2641.7,3.78534]
[1739159057915,0.8089,2642.3,2641.3,2.94641964]
[1739159058082,0.8089,2642.3,2641.9,3.78503]
[1739159058287,0.8089,2642.3,2641.9,7.57007]
[1739159058588,0.8089,2642.3,2642.0,3.7849]
[1739159059190,0.7673888,2642.6,2642.0,3.78498]
[1739159059191,1.5762888,2642.6,2642.0,3.78498]
[1739159059402,3.78429,2642.5,2641.3,2.94641964]
[1739159059605,0.8089,2642.4,2641.0,2.94641964]
[1739159059831,0.7673888,2642.6,2640.6,6.45449947]
[1739159059832,0.8089,2641.4,2640.9,3.78658]
[1739159059989,0.8089,2641.4,2640.5,0.67565465]
[1739159060327,0.8089,2640.9,2640.5,0.67565465]
[1739159060499,0.8089,2640.9,2640.5,4.46269465]
[1739159060840,0.8089,2641.2,2640.9,3.78646]
[1739159061327,0.8089,2641.2,2640.7,3.78682]
[1739159061527,4.59517,2641.2,2640.5,3.9019592]
[1739159061735,0.8089,2641.2,2640.6,3.787]
[1739159061939,0.8089,2641.2,2640.5,0.1148092]
[1739159062231,0.8089,2641.2,2640.5,3.9019192]
[1739159062441,0.8089,2641.2,2640.5,0.1148092]
[1739159062730,0.8089,2641.7,2641.0,3.78643]
[1739159062898,0.8089,2641.7,2641.1,3.78618]
[1739159063104,1.56505727,2641.7,2641.1,3.78618]
[1739159063297,5.35050727,2641.7,2641.1,3.78618]
[1739159064342,5.35050727,2641.7,2640.9,3.78654]
[1739159064646,3.78559,2641.6,2640.9,3.78654]
[1739159065135,3.78573,2641.5,2640.9,3.78654]
[1739159065293,3.78619,2641.2,2640.5,3.9018492]
[1739159065494,0.8089,2641.1,2640.5,0.1148092]
[1739159065690,4.5952,2641.1,2640.5,0.1148092]
[1739159065897,3.78647,2641.0,2640.5,0.1148092]
[1739159066208,3.78668,2640.9,2640.5,0.1148092]
[1739159066390,4.5952,2641.1,2640.5,0.1148092]
[1739159066896,3.78664,2640.9,2640.5,0.1148092]
[1739159067418,4.59526,2641.1,2640.5,3.9018492]
[1739159068189,3.78653,2641.0,2640.5,0.1148092]
[1739159068394,3.78667,2640.9,2640.5,0.1148092]
[1739159068808,3.78677,2640.8,2640.5,0.1148092]
[1739159069290,4.59525,2641.1,2640.5,0.1148092]
[1739159069639,3.78577,2641.5,2640.7,3.78673]
[1739159069805,0.8089,2641.6,2640.5,0.9152092]
[1739159070007,3.78572,2641.5,2640.9,3.78645]
[1739159070216,0.8089,2641.6,2641.2,3.78613]
[1739159070531,0.8089,2641.6,2641.2,3.78605]
[1739159070693,4.59451,2641.6,2641.0,3.78634]
[1739159071047,3.78574,2641.5,2641.0,3.78634]
[1739159071246,3.78574,2641.5,2640.7,5.93276964]
[1739159071541,3.78574,2641.5,2640.8,3.78663]
[1739159071715,4.59461,2641.6,2641.0,3.78638]
[1739159071950,3.78573,2641.5,2641.0,3.78638]
[1739159072163,3.78573,2641.5,2640.8,3.78663]
[1739159072335,3.78573,2641.5,2640.9,3.78658]
[1739159072533,0.8089,2641.6,2641.0,3.78641]
[1739159072735,3.78575,2641.5,2641.0,3.78641]
[1739159073105,0.8089,2641.6,2641.2,3.78614]
[1739159073425,0.8089,2642.0,2641.3,2.14601964]
[1739159073632,3.78432,2642.5,2641.8,3.78519]
[1739159073956,4.55307703,2642.5,2641.9,3.78513]
[1739159074125,3.78407,2642.7,2641.8,3.78519]
[1739159074126,3.78407,2642.7,2642.0,3.78491]
[1739159074325,3.78441,2642.5,2641.8,3.78519]
[1739159074825,3.78407,2642.7,2642.0,3.78498]
[1739159075024,0.73974408,2642.7,2642.0,3.78498]
[1739159075274,3.78418,2642.6,2642.0,3.78498]
[1739159075425,4.52376408,2642.7,2642.1,3.78486]
[1739159075634,0.73974408,2642.7,2641.9,0.8004]
[1739159075839,4.52376408,2642.7,2642.1,3.78474]
[1739159077438,4.52376408,2642.7,2641.5,4.54361]
[1739159077439,0.73974408,2642.7,2641.5,4.54361]
[1739159077669,3.78524,2641.9,2641.2,4.54405]
[1739159077945,3.78524,2641.9,2641.2,0.7579]
[1739159078186,0.754,2642.0,2641.4,3.78585]
[1739159078392,3.78454,2642.4,2641.7,3.7853]
[1739159078594,3.78458,2642.3,2641.7,3.7853]
[1739159078805,4.53818,2642.6,2641.7,3.7853]
[1739159079102,3.78432,2642.5,2641.9,3.78505]
[1739159079412,0.754,2642.6,2641.9,3.78503]
[1739159079603,1.49541171,2642.6,2641.1,2.14601964]
[1739159079810,3.78529,2641.9,2641.3,3.78592]
[1739159080106,0.754,2641.7,2640.9,4.54438]
[1739159080276,0.754,2641.7,2641.0,3.78631]
[1739159080455,0.754,2641.7,2641.2,3.78608]
[1739159080892,3.78501,2642.0,2641.2,3.78608]
[1739159080893,0.754,2642.0,2641.2,3.78608]
[1739159081204,3.78515,2641.9,2641.2,3.78606]
[1739159081362,0.754,2642.0,2641.2,3.78606]
[1739159081557,3.78515,2641.9,2641.1,3.78629]
[1739159081803,3.78515,2641.9,2641.3,3.78598]
[1739159082000,0.754,2642.0,2641.5,3.78572]
[1739159082303,3.78464,2642.3,2641.1,2.14601964]
[1739159082518,0.754,2642.4,2641.9,3.78506]
[1739159082715,4.53843,2642.4,2641.8,3.78527]
[1739159082877,4.53843,2642.4,2641.4,3.7858]
[1739159082878,0.754,2642.4,2641.4,3.7858]
[1739159083253,3.78517,2641.9,2641.2,4.54394]
[1739159083453,3.78512,2642.0,2641.3,3.78599]
[1739159083749,3.78512,2642.0,2641.4,3.78579]
[1739159084054,3.78518,2641.9,2641.2,0.7579]
[1739159084256,3.78552,2641.7,2641.1,3.78622]
[1739159084474,3.78552,2641.7,2641.1,3.78619]
[1739159084627,3.71083732,2641.7,2641.1,7.57238]
[1739159084827,3.71083732,2641.7,2640.9,0.7579]
[1739159085132,3.71083732,2641.7,2641.1,3.7862]
[1739159085337,3.78562,2641.6,2641.0,3.78635]
[1739159085663,3.78591,2641.4,2640.8,2.14601964]
[1739159085823,3.78603,2641.3,2640.7,3.78678]
[1739159086361,3.78603,2641.3,2640.8,3.78669]
[1739159086721,0.754,2641.2,2640.8,3.78669]
[1739159086942,3.78641,2641.1,2640.5,3.1148092]
[1739159087142,0.754,2641.2,2640.5,3.1148092]
[1739159087143,0.754,2641.2,2640.7,3.78683]
[1739159087343,4.53979,2641.5,2640.8,3.78661]
[1739159087595,8.32566,2641.5,2640.8,3.78661]
[1739159087757,3.78588,2641.4,2640.8,3.78661]
[1739159088082,4.53979,2641.5,2640.8,3.78661]
[1739159088283,3.7861,2641.3,2640.6,6.78695]
[1739159088445,3.78619,2641.2,2640.6,6.78695]
[1739159088645,3.78601,2641.3,2640.6,6.78695]
[1739159088850,3.78601,2641.3,2640.6,6.78689]
[1739159089053,3.78601,2641.3,2640.7,3.78682]
[1739159089361,4.53975,2641.5,2640.7,3.78682]
[1739159089601,3.78595,2641.4,2640.6,6.78689]
[1739159089751,3.78595,2641.4,2640.6,3.78689]
[1739159090297,3.78609,2641.3,2640.6,3.78689]
[1739159090582,0.754,2641.5,2641.0,3.78632]
[1739159090783,0.19095918,2642.3,2641.6,3.78548]
[1739159090784,0.754,2642.1,2641.6,3.78548]
[1739159091142,0.754,2642.1,2641.4,5.93182964]
[1739159091143,0.754,2642.1,2641.7,2.14601964]
[1739159091349,0.754,2642.4,2641.9,3.78512]
[1739159091758,3.78459,2642.3,2641.4,2.14601964]
[1739159091982,3.78459,2642.3,2641.5,3.78572]
[1739159092155,3.78518,2641.9,2641.2,0.7836]
[1739159092357,0.8236,2641.8,2641.1,5.93220964]
[1739159092665,0.8236,2641.8,2641.1,3.78619]
[1739159092666,4.60898,2641.8,2641.1,3.78619]
[1739159092874,4.60898,2641.8,2640.9,4.57015]
[1739159093054,4.60898,2641.8,2641.1,3.78624]
[1739159093251,3.78582,2641.5,2640.8,2.14601964]
[1739159093478,3.78582,2641.5,2640.7,3.78682]
[1739159093987,7.57166,2641.5,2640.7,3.78682]
[1739159094190,3.78582,2641.5,2640.8,3.0]
[1739159094349,3.78593,2641.4,2640.8,5.14601964]
[1739159094565,3.78582,2641.5,2640.8,2.14601964]
[1739159094762,3.78607,2641.3,2640.5,0.1148092]
[1739159094966,3.78641,2641.1,2640.5,0.1148092]
[1739159095184,0.8236,2641.0,2640.5,0.1148092]
[1739159095564,0.8236,2641.0,2640.6,3.78701]
[1739159095759,4.6101,2641.0,2640.5,0.1148092]
[1739159096004,0.8236,2641.0,2640.5,0.1148092]
[1739159096299,3.78661,2640.9,2640.5,0.1148092]
[1739159096905,3.78673,2640.8,2640.5,0.1148092]
[1739159097090,0.76048134,2640.9,2640.5,0.1148092]
[1739159097809,4.61006,2641.0,2640.5,0.1148092]
[1739159098115,0.8236,2641.0,2640.5,0.1148092]
[1739159098320,1.57237459,2641.0,2640.5,3.9018292]
[1739159098467,0.74877459,2641.0,2640.6,3.78692]
[1739159098668,0.74877459,2641.0,2640.5,3.9019592]
[1739159098983,0.8236,2641.3,2640.7,3.78685]
[1739159099191,0.8236,2641.3,2640.7,3.78679]
[1739159099584,5.36266456,2641.3,2640.5,3.9019492]
[1739159100224,3.78668,2640.9,2640.5,0.1148092]
[1739159100873,0.55,2641.3,2640.5,0.1148092]
[1739159101071,4.61081,2640.5,2639.7,3.7882]
[1739159101304,4.61081,2640.5,2639.6,2.92961964]
[1739159101305,3.78759,2640.2,2639.6,0.7836]
[1739159101463,3.78732,2640.4,2639.6,4.57198]
[1739159101667,0.8236,2640.5,2640.0,3.78784]
[1739159101911,0.8236,2640.5,2639.8,3.7881]
[1739159102123,0.8236,2640.5,2639.9,3.78801]
[1739159102337,0.8236,2640.5,2640.1,3.78761]
[1739159102629,0.8236,2641.6,2640.5,3.78716]
[1739159102928,4.60922,2641.6,2641.0,3.78635]
[1739159103128,0.8236,2641.6,2640.7,44.45449947]
[1739159103288,3.78575,2641.5,2640.9,3.78652]
[1739159103493,0.8236,2641.6,2640.7,10.24126947]
[1739159103706,0.8236,2641.6,2641.0,3.78643]
[1739159103889,0.8236,2641.6,2640.9,3.78658]
[1739159104212,0.8236,2641.6,2640.7,6.45449947]
[1739159104213,0.8236,2641.6,2640.8,3.0]
[1739159104420,0.8236,2641.6,2640.7,6.45449947]
[1739159104711,4.60862,2642.0,2641.2,3.78609]
[1739159105029,3.78582,2641.5,2640.8,7.23809947]
[1739159105192,3.78602,2641.3,2640.4,3.78725]
[1739159105395,0.8236,2641.4,2640.8,3.78663]
[1739159105791,3.78621,2641.2,2640.5,3.0]
[1739159106009,3.78621,2641.2,2640.5,6.78714]
[1739159106216,3.78646,2641.0,2640.3,3.78732]
[1739159106477,3.78646,2641.0,2640.3,3.78743]
[1739159106478,0.8052,2640.9,2640.3,3.78743]
[1739159106679,0.8052,2641.3,2640.5,3.78716]
[1739159106911,0.8052,2641.3,2640.7,3.7868]
[1739159107181,3.78634,2641.1,2640.5,3.78712]
[1739159107409,3.78634,2641.1,2640.2,10.24205947]
[1739159107613,0.8052,2641.1,2640.0,5.93384964]
[1739159107796,3.78683,2640.8,2640.1,3.78765]
[1739159108246,3.78644,2641.0,2640.2,3.78758]
[1739159108381,0.8052,2641.1,2640.7,3.78676]
[1739159108883,4.59108,2641.4,2640.8,3.7867]
[1739159109082,4.59108,2641.4,2640.3,2.94921964]
[1739159109083,4.59112,2641.4,2640.4,10.24176947]
[1739159109283,3.78631,2641.1,2640.4,10.24176947]
[1739159109551,3.78631,2641.1,2640.4,14.02897947]
[1739159109731,3.78643,2641.1,2640.4,6.45449947]
[1739159110048,3.7869,2640.7,2640.4,6.45449947]
[1739159110228,0.8052,2640.7,2640.0,4.59104]
[1739159110557,4.52937858,2641.3,2640.4,3.78717]
[1739159110558,0.8052,2641.2,2640.4,3.78717]
[1739159110849,4.59142,2641.2,2640.5,3.78708]
[1739159111056,0.8052,2641.2,2640.6,3.78701]
[1739159111354,0.8052,2641.2,2640.6,3.787]
[1739159111535,0.8052,2641.2,2640.9,3.78654]
[1739159111846,0.18508754,2641.9,2640.1,3.0]
[1739159111847,0.8052,2641.5,2640.6,5.14601964]
[1739159112015,0.8052,2641.5,2641.0,3.78643]
[1739159112341,0.8052,2641.5,2641.0,3.78635]
[1739159112699,0.8052,2641.8,2641.2,3.78613]
[1739159112902,0.8052,2641.8,2641.4,3.78584]
[1739159113099,0.19041026,2642.5,2641.4,3.78584]
[1739159113100,0.8052,2642.1,2641.4,3.78584]
[1739159113305,0.8052,2642.1,2641.4,3.78575]
[1739159113504,0.8052,2642.1,2641.3,3.78601]
[1739159113726,1.57776147,2642.1,2641.5,3.78567]
[1739159114006,5.36273147,2642.1,2641.3,3.7859]
[1739159114326,1.57776147,2642.1,2641.5,3.7856]
[1739159114508,1.57776147,2642.1,2641.7,3.78543]
[1739159114841,1.57776147,2642.1,2641.5,5.93161964]
[1739159115201,1.57776147,2642.1,2641.6,3.78557]
[1739159115408,0.8052,2642.5,2642.0,3.78501]
[1739159115617,4.5895,2642.5,2641.8,5.93120964]
[1739159115845,3.78444,2642.4,2641.8,5.93120964]
[1739159116218,0.8052,2642.5,2641.5,8.60051911]
[1739159116219,3.78496,2642.1,2641.5,8.60051911]
[1739159116543,3.78496,2642.1,2641.5,6.45449947]
[1739159116850,3.8052,2642.2,2641.5,6.45449947]
[1739159117083,3.78599,2641.4,2640.6,9.40371911]
[1739159117357,0.8052,2641.7,2640.3,5.93342964]
[1739159117556,0.8052,2640.9,2640.3,5.93336964]
[1739159117862,3.0,2641.8,2640.2,0.11418321]
[1739159117863,1.57533489,2641.3,2640.6,5.93301964]
[1739159118020,1.57533489,2641.3,2640.7,3.78684]
[1739159118221,5.36138489,2641.3,2640.6,5.93301964]
[1739159118632,0.8052,2641.3,2640.8,3.78659]
[1739159118955,3.78625,2641.2,2640.6,2.14601964]
[1739159119162,0.8052,2641.3,2640.6,2.14601964]
[1739159119374,3.0,2641.7,2640.6,2.14601964]
[1739159119375,0.8052,2642.4,2641.2,2.14601964]
[1739159119520,0.74564163,2642.0,2641.6,3.78547]
[1739159119723,4.58975,2642.4,2641.2,8.60051911]
[1739159119925,0.74238091,2642.3,2641.5,5.93173964]
[1739159120372,4.52700091,2642.3,2641.5,5.93173964]
[1739159120573,4.52700091,2642.3,2641.7,3.78543]
[1739159120723,0.74238091,2642.3,2641.7,3.78543]
[1739159120924,0.8052,2642.4,2641.5,2.14601964]
[1739159121254,0.8052,2642.4,2641.9,3.78513]
[1739159121433,0.8052,2642.4,2641.7,3.78544]
[1739159121621,4.58972,2642.4,2641.7,3.78544]
[1739159121826,4.58972,2642.4,2641.8,3.78526]
[1739159122229,4.58972,2642.4,2641.7,3.78544]
[1739159122537,0.8052,2642.4,2642.1,3.78486]
[1739159122870,3.78416,2642.6,2641.9,7.57014]
[1739159123076,4.56171,2642.7,2642.0,3.78499]
[1739159123234,0.7776,2642.7,2641.7,6.45449947]
[1739159123442,3.78461,2642.3,2641.7,6.45449947]
[1739159123639,3.78445,2642.4,2641.8,3.78519]
[1739159123824,0.7776,2642.7,2641.8,3.78519]
[1739159123825,4.56165,2642.7,2642.0,3.78494]
[1739159124024,3.78434,2642.5,2641.8,5.93120964]
[1739159124246,3.78445,2642.4,2641.8,5.93120964]
[1739159124522,3.78445,2642.4,2641.7,6.45449947]
[1739159124722,0.7776,2641.9,2641.2,5.93210964]
[1739159124924,3.78617,2641.2,2640.6,5.93299964]
[1739159125125,0.7776,2641.3,2640.6,2.14601964]
[1739159125449,3.78453,2642.4,2641.6,3.78552]
[1739159125652,3.78445,2642.4,2641.6,3.78552]
[1739159125850,3.78469,2642.3,2641.6,3.78552]
[1739159126052,0.7776,2642.2,2641.2,12.38656911]
[1739159126362,3.78555,2641.7,2641.0,3.78636]
[1739159126525,0.7776,2641.6,2641.0,3.78636]
[1739159127169,3.78612,2641.3,2640.6,12.38747911]
[1739159127408,3.78612,2641.3,2640.7,3.78684]
[1739159127682,3.78577,2641.5,2640.8,3.78664]
[1739159127683,3.78591,2641.4,2640.8,3.78664]
[1739159128526,5.3062413,2641.6,2640.8,3.78664]
[1739159128726,3.78574,2641.5,2640.8,3.78664]
[1739159128875,1.5205613,2641.6,2641.2,3.78612]
[1739159129074,0.7776,2641.6,2640.9,2.14601964]
[1739159129332,0.7776,2642.1,2641.5,3.78572]
[1739159129525,0.7776,2642.1,2641.6,3.78551]
[1739159129730,0.7776,2642.1,2641.8,3.78529]
[1739159130027,3.78509,2642.0,2641.3,3.78597]
[1739159130682,3.78509,2642.0,2641.4,3.78573]
[1739159131192,0.74136956,2642.0,2641.4,3.78573]
[1739159131532,0.74136956,2642.0,2641.2,2.14601964]
[1739159131674,0.7776,2642.5,2641.9,3.78512]
[1739159131878,0.7776,2642.5,2641.8,2.14601964]
[1739159132126,4.5619,2642.5,2641.8,5.93121964]
[1739159132442,0.75501301,2642.4,2642.0,3.78497]
[1739159132644,0.75501301,2642.4,2641.8,2.14601964]
[1739159132851,0.75501301,2642.4,2641.9,3.78511]
[1739159133148,0.7650182,2642.7,2642.4,3.78433]
[1739159133444,0.7776,2642.9,2642.3,3.78458]
[1739159133597,3.78333,2643.2,2642.5,3.78427]
[1739159133799,4.56093,2643.2,2642.4,2.14601964]
[1739159134342,0.7776,2643.2,2642.7,3.784]
[1739159135116,0.37439581,2643.7,2642.7,3.784]
[1739159135117,4.33247,2643.8,2642.9,3.78368]
[1739159135434,4.33247,2643.8,2643.2,3.78325]
[1739159135435,0.7776,2643.7,2643.2,3.78325]
[1739159135636,3.78272,2643.6,2643.0,2.14601964]
[1739159135814,3.78303,2643.4,2642.7,2.14601964]
[1739159136017,3.78345,2643.1,2642.5,10.23875947]
[1739159136243,3.7834,2643.2,2642.5,3.78426]
[1739159136448,0.7776,2643.3,2642.4,2.14601964]
[1739159136743,0.7776,2643.3,2642.0,9.47094525]
[1739159136744,0.7776,2643.3,2642.7,2.14601964]
[1739159136924,0.7776,2643.3,2642.4,2.14601964]
[1739159137129,3.78412,2642.7,2642.1,8.60051911]
[1739159137448,7.33327,2643.3,2641.7,3.0]
[1739159137449,3.78448,2642.4,2641.8,2.14601964]
[1739159138099,3.78448,2642.4,2641.8,5.93130964]
[1739159138297,3.78448,2642.4,2641.6,3.78553]
[1739159138497,0.7805,2642.0,2640.9,5.93259964]
[1739159138845,3.7853,2641.8,2641.1,3.78629]
[1739159139615,4.55340408,2641.9,2641.1,3.78629]
[1739159139820,0.7805,2642.0,2641.5,3.78569]
[1739159140119,0.7805,2642.0,2641.3,3.78588]
[1739159140859,0.7805,2642.0,2641.4,3.78578]
[1739159141001,4.56553,2642.0,2641.3,3.78588]
[1739159141202,5.32183729,2642.0,2641.3,3.78588]
[1739159141857,3.7855,2641.7,2641.0,3.78638]
[1739159142151,3.1,2642.8,2641.6,2.39043733]
[1739159142152,0.7805,2642.8,2641.6,2.39043733]
[1739159142375,0.7805,2642.8,2642.2,3.78467]
[1739159142505,4.56437,2642.8,2642.2,3.78467]
[1739159142833,0.76358385,2642.6,2642.0,3.78497]
[1739159143015,0.76358385,2642.6,2641.8,10.23976947]
[1739159143428,0.7805,2641.9,2641.2,12.6310868]
[1739159143584,4.56566,2641.9,2641.2,6.17658733]
[1739159143884,0.7805,2642.4,2641.7,3.78538]
[1739159144032,0.7805,2642.4,2641.3,3.78601]
[1739159144231,0.7805,2642.4,2641.8,3.78527]
[1739159144481,3.78469,2642.3,2641.6,3.78549]
[1739159144834,3.78499,2642.1,2641.3,10.24044947]
[1739159145180,3.78515,2641.9,2641.3,10.24044947]
[1739159145587,0.7805,2642.0,2641.4,3.78582]
[1739159145733,0.7805,2642.0,2641.5,3.78559]
[1739159146138,0.7805,2642.0,2641.3,10.24050947]
[1739159146139,0.7805,2642.3,2641.7,3.78533]
[1739159146386,0.7805,2642.3,2641.9,3.78515]
[1739159146693,0.7805,2642.9,2641.8,0.8303]
[1739159146838,0.7805,2642.9,2642.2,3.78471]
[1739159147039,0.7805,2642.9,2642.1,3.78486]
[1739159147281,0.7805,2642.9,2642.5,3.78421]
[1739159147526,0.7805,2642.9,2642.3,3.78455]
[1739159147732,0.7805,2642.9,2642.4,3.78437]
[1739159147893,4.56422,2642.9,2642.3,3.78455]
[1739159148451,0.7805,2642.9,2642.3,3.78445]
[1739159149210,0.7805,2642.9,2642.1,3.78482]
[1739159149430,0.7805,2642.9,2642.3,3.78448]
[1739159149431,4.56422,2642.9,2642.3,3.78448]
[1739159149640,3.78395,2642.8,2642.1,3.78482]
[1739159149785,3.78404,2642.7,2642.1,3.78482]
[1739159150236,3.78417,2642.6,2642.0,8.8449368]
[1739159150584,3.78417,2642.6,2642.0,12.6299268]
[1739159151326,4.56522,2642.2,2641.6,2.39043733]
[1739159151682,3.78488,2642.1,2641.5,3.78559]
[1739159151881,3.78524,2641.9,2641.2,2.39043733]
[1739159152141,3.78547,2641.7,2641.2,2.39043733]
[1739159152337,0.7721,2641.6,2641.1,10.24069947]
[1739159153729,0.7721,2641.6,2641.1,10.24068947]
[1739159153935,0.7721,2641.6,2641.2,3.78613]
[1739159154239,3.78582,2641.5,2640.8,6.17708733]
[1739159154609,3.78613,2641.3,2640.8,2.39043733]
[1739159154826,3.7864,2641.1,2640.5,6.45449947]
[1739159155007,0.7721,2641.0,2640.5,10.24163947]
[1739159155207,1.53880557,2641.4,2641.0,3.78631]
[1739159155408,3.78554,2641.7,2641.0,3.78631]
[1739159155637,3.78582,2641.5,2640.8,6.17710733]
[1739159156248,3.78582,2641.5,2640.8,9.96370733]
[1739159156556,3.78582,2641.5,2640.8,2.39043733]
[1739159156758,7.57225,2641.3,2640.8,2.39043733]
[1739159156904,3.7861,2641.3,2640.8,2.39043733]
[1739159157110,3.78578,2641.5,2640.8,2.39043733]
[1739159157309,4.55773,2641.6,2640.4,2.39043733]
[1739159157540,3.78633,2641.1,2640.4,2.39043733]
[1739159157744,3.78633,2641.1,2640.5,3.78705]
[1739159157925,7.57275,2641.1,2640.4,6.17762733]
[1739159158134,3.78667,2640.9,2640.4,2.39043733]
[1739159158317,3.78664,2640.9,2640.4,2.39043733]
[1739159158538,0.7721,2641.2,2640.0,6.29299827]
[1739159158838,4.33577,2641.5,2640.0,6.29299827]
[1739159158839,0.7721,2640.7,2640.1,3.78773]
[1739159159042,4.55907,2640.7,2640.0,6.29310827]
[1739159159223,0.7721,2640.7,2640.0,0.11483094]